[Event "Titled Tuesday Blitz May 03 Late 2022"]
[White "Ansh M Shah"]
[Black "Wieczorek, Oskar"]
[WhiteFideId "25033379"]
[BlackFideId "1133950"]
[WhiteElo "1819"]
[BlackElo "2319"]
[Result "1/2-1/2"]
[Round "01"]
[TimeControl "180+1"]
[Date "2022.05.03"]
[WhiteClock "0:01:15"]
[BlackClock "0:00:19"]

1. d4 {[%clk 0:03:00]}  Nf6 {[%clk 0:02:57]} 2. c4 {[%clk 0:03:01]}  c5 {[%clk 0:02:55]} 3. Nf3 {[%clk 0:03:01]}  cxd4 {[%clk 0:02:53]} 4. Nxd4 {[%clk 0:03:02]}  Nc6 {[%clk 0:02:54]} 5. Nxc6 {[%clk 0:03:02]}  bxc6 {[%clk 0:02:53]} 6. g3 {[%clk 0:03:02]}  g6 {[%clk 0:02:53]} 7. Bg2 {[%clk 0:03:02]}  Bg7 {[%clk 0:02:53]} 8. O-O {[%clk 0:03:02]}  O-O {[%clk 0:02:54]} 9. Nc3 {[%clk 0:03:02]}  Rb8 {[%clk 0:02:54]} 10. Qc2 {[%clk 0:03:01]}  c5 {[%clk 0:02:55]} 11. b3 {[%clk 0:03:01]}  d6 {[%clk 0:02:55]} 12. Bb2 {[%clk 0:03:02]}  Bb7 {[%clk 0:02:56]} 13. Bxb7 {[%clk 0:03:01]}  Rxb7 {[%clk 0:02:57]} 14. Rac1 {[%clk 0:03:01]}  Qd7 {[%clk 0:02:51]} 15. Rfd1 {[%clk 0:03:01]}  Qc6 {[%clk 0:02:52]} 16. Nd5 {[%clk 0:03:01]}  Nxd5 {[%clk 0:02:52]} 17. Bxg7 {[%clk 0:03:00]}  Ne3 {[%clk 0:02:47]} 18. fxe3 {[%clk 0:02:55]}  Kxg7 {[%clk 0:02:47]} 19. e4 {[%clk 0:02:53]}  f6 {[%clk 0:02:43]} 20. Rd5 {[%clk 0:02:43]}  a5 {[%clk 0:02:43]} 21. Rf1 {[%clk 0:02:37]}  a4 {[%clk 0:02:42]} 22. bxa4 {[%clk 0:02:36]}  Ra8 {[%clk 0:02:40]} 23. g4 {[%clk 0:02:28]}  Qxa4 {[%clk 0:02:38]} 24. Qd3 {[%clk 0:02:26]}  Qa3 {[%clk 0:02:32]} 25. g5 {[%clk 0:02:26]}  fxg5 {[%clk 0:02:22]} 26. Qd2 {[%clk 0:02:22]}  h6 {[%clk 0:02:17]} 27. e5 {[%clk 0:02:20]}  Rb2 {[%clk 0:02:16]} 28. Qe1 {[%clk 0:02:16]}  Qe3+ {[%clk 0:02:15]} 29. Qf2 {[%clk 0:02:16]}  Rxe2 {[%clk 0:01:19]} 30. Qxe3 {[%clk 0:02:13]}  Rxe3 {[%clk 0:01:20]} 31. exd6 {[%clk 0:02:14]}  exd6 {[%clk 0:01:16]} 32. Rxd6 {[%clk 0:02:15]}  Rf8 {[%clk 0:00:27]} 33. Rxf8 {[%clk 0:01:51]}  Kxf8 {[%clk 0:00:27]} 34. Rxg6 {[%clk 0:01:52]}  Rh3 {[%clk 0:00:25]} 35. a4 {[%clk 0:01:38]}  Kf7 {[%clk 0:00:17]} 36. Rc6 {[%clk 0:01:38]}  Ra3 {[%clk 0:00:16]} 37. Ra6 {[%clk 0:01:30]}  Rc3 {[%clk 0:00:16]} 38. Rxh6 {[%clk 0:01:29]}  Rxc4 {[%clk 0:00:16]} 39. Ra6 {[%clk 0:01:30]}  Rb4 {[%clk 0:00:16]} 40. Ra8 {[%clk 0:01:29]}  c4 {[%clk 0:00:15]} 41. a5 {[%clk 0:01:29]}  c3 {[%clk 0:00:14]} 42. Rc8 {[%clk 0:01:23]}  Ra4 {[%clk 0:00:14]} 43. Rc5 {[%clk 0:01:18]}  Kg6 {[%clk 0:00:13]} 44. Rxc3 {[%clk 0:01:15]}  Rxa5 {[%clk 0:00:13]} 45. Kg2 {[%clk 0:01:16]}  Kh5 {[%clk 0:00:13]} 46. h3 {[%clk 0:01:15]}  Ra4 {[%clk 0:00:14]} 47. Kg3 {[%clk 0:01:15]}  Rd4 {[%clk 0:00:13]} 48. Ra3 {[%clk 0:01:15]}  Rc4 {[%clk 0:00:14]} 49. Rf3 {[%clk 0:01:16]}  Kg6 {[%clk 0:00:14]} 50. Re3 {[%clk 0:01:15]}  Rb4 {[%clk 0:00:14]} 51. Rd3 {[%clk 0:01:14]}  Ra4 {[%clk 0:00:15]} 52. Rc3 {[%clk 0:01:14]}  Rb4 {[%clk 0:00:15]} 53. Ra3 {[%clk 0:01:13]}  Rc4 {[%clk 0:00:15]} 54. Rd3 {[%clk 0:01:13]}  Rb4 {[%clk 0:00:16]} 55. Rf3 {[%clk 0:01:14]}  Rc4 {[%clk 0:00:16]} 56. Ra3 {[%clk 0:01:14]}  Rb4 {[%clk 0:00:17]} 57. Ra6+ {[%clk 0:01:14]}  Kh5 {[%clk 0:00:17]} 58. Ra3 {[%clk 0:01:15]}  Rc4 {[%clk 0:00:17]} 59. Rb3 {[%clk 0:01:14]}  Rd4 {[%clk 0:00:17]} 60. Rc3 {[%clk 0:01:14]}  Re4 {[%clk 0:00:18]} 61. Rf3 {[%clk 0:01:15]}  Ra4 {[%clk 0:00:18]} 62. Rc3 {[%clk 0:01:15]}  Rb4 {[%clk 0:00:19]} 63. Ra3 {[%clk 0:01:15]}  Rc4 {[%clk 0:00:19]} 1/2-1/2


[Site "https://www.chess.com"]

[Event "Titled Tuesday Blitz May 03 Late 2022"]
[White "Barria Zuniga, Daniel"]
[Black "Keller, Peter"]
[WhiteFideId "3400816"]
[BlackFideId "1272105"]
[WhiteElo "2414"]
[BlackElo "2275"]
[Result "1-0"]
[Round "01"]
[TimeControl "180+1"]
[Date "2022.05.03"]
[WhiteClock "0:01:08"]
[BlackClock "0:00:01"]

1. c4 {[%clk 0:02:56]}  e5 {[%clk 0:02:59]} 2. g3 {[%clk 0:02:56]}  Nf6 {[%clk 0:02:56]} 3. Bg2 {[%clk 0:02:56]}  c6 {[%clk 0:02:55]} 4. Nh3 {[%clk 0:02:54]}  d5 {[%clk 0:02:29]} 5. cxd5 {[%clk 0:02:55]}  cxd5 {[%clk 0:02:30]} 6. d4 {[%clk 0:02:54]}  exd4 {[%clk 0:02:25]} 7. O-O {[%clk 0:02:54]}  Nc6 {[%clk 0:02:25]} 8. Bg5 {[%clk 0:02:52]}  Be7 {[%clk 0:02:23]} 9. Nf4 {[%clk 0:02:52]}  Be6 {[%clk 0:02:11]} 10. Nd2 {[%clk 0:02:52]}  O-O {[%clk 0:02:11]} 11. Nb3 {[%clk 0:02:47]}  h6 {[%clk 0:02:11]} 12. Bxf6 {[%clk 0:02:42]}  Bxf6 {[%clk 0:02:12]} 13. Nc5 {[%clk 0:02:40]}  Qe7 {[%clk 0:02:03]} 14. Rc1 {[%clk 0:02:40]}  Rfd8 {[%clk 0:02:01]} 15. Qb3 {[%clk 0:02:36]}  Rab8 {[%clk 0:01:39]} 16. Bxd5 {[%clk 0:02:11]}  Na5 {[%clk 0:01:29]} 17. Qf3 {[%clk 0:02:03]}  Bc8 {[%clk 0:00:54]} 18. b4 {[%clk 0:01:53]}  Nc6 {[%clk 0:00:49]} 19. a3 {[%clk 0:01:52]}  Ne5 {[%clk 0:00:45]} 20. Qb3 {[%clk 0:01:49]}  g5 {[%clk 0:00:29]} 21. Nh5 {[%clk 0:01:36]}  Bh8 {[%clk 0:00:29]} 22. f4 {[%clk 0:01:35]}  Bg4 {[%clk 0:00:17]} 23. fxe5 {[%clk 0:01:29]}  Bxh5 {[%clk 0:00:18]} 24. e6 {[%clk 0:01:23]}  Rf8 {[%clk 0:00:14]} 25. Nd7 {[%clk 0:01:17]}  fxe6 {[%clk 0:00:05]} 26. Bxe6+ {[%clk 0:01:16]}  Kg7 {[%clk 0:00:04]} 27. Nxb8 {[%clk 0:01:14]}  Rxb8 {[%clk 0:00:03]} 28. Qd5 {[%clk 0:01:14]}  Bg6 {[%clk 0:00:02]} 29. Qe5+ {[%clk 0:01:12]}  Kh7 {[%clk 0:00:01]} 30. Bg8+ {[%clk 0:01:08]} 1-0


[Site "https://www.chess.com"]

[Event "Titled Tuesday Blitz May 03 Late 2022"]
[White "Bortnyk, Olexandr"]
[Black "Zivkovic, Nemanja"]
[WhiteFideId "14120828"]
[BlackFideId "942154"]
[WhiteElo "2723"]
[BlackElo "2364"]
[Result "1-0"]
[Round "01"]
[TimeControl "180+1"]
[Date "2022.05.03"]
[WhiteClock "0:00:07"]
[BlackClock "0:00:07"]

1. d4 {[%clk 0:02:59]}  Nf6 {[%clk 0:02:49]} 2. Nc3 {[%clk 0:03:00]}  d6 {[%clk 0:02:49]} 3. e4 {[%clk 0:03:00]}  e5 {[%clk 0:02:48]} 4. Nf3 {[%clk 0:03:00]}  Nbd7 {[%clk 0:02:48]} 5. Rg1 {[%clk 0:02:56]}  g6 {[%clk 0:02:42]} 6. g4 {[%clk 0:02:53]}  h6 {[%clk 0:02:39]} 7. Be3 {[%clk 0:02:51]}  c6 {[%clk 0:02:38]} 8. Qd2 {[%clk 0:02:50]}  Qe7 {[%clk 0:02:37]} 9. O-O-O {[%clk 0:02:49]}  Bg7 {[%clk 0:02:37]} 10. a3 {[%clk 0:02:46]}  a6 {[%clk 0:02:36]} 11. Bc4 {[%clk 0:02:45]}  b5 {[%clk 0:02:35]} 12. Ba2 {[%clk 0:02:45]}  Bb7 {[%clk 0:02:33]} 13. dxe5 {[%clk 0:02:43]}  dxe5 {[%clk 0:02:29]} 14. g5 {[%clk 0:02:43]}  hxg5 {[%clk 0:02:28]} 15. Nxg5 {[%clk 0:02:43]}  Rf8 {[%clk 0:02:24]} 16. f4 {[%clk 0:02:33]}  O-O-O {[%clk 0:02:17]} 17. Qf2 {[%clk 0:02:32]}  Bh6 {[%clk 0:01:36]} 18. Kb1 {[%clk 0:02:23]}  Nh5 {[%clk 0:01:32]} 19. f5 {[%clk 0:02:15]}  Nf4 {[%clk 0:01:16]} 20. Bxf4 {[%clk 0:01:46]}  exf4 {[%clk 0:01:17]} 21. Qxf4 {[%clk 0:01:46]}  Ne5 {[%clk 0:01:15]} 22. f6 {[%clk 0:01:40]}  Rxd1+ {[%clk 0:01:06]} 23. Rxd1 {[%clk 0:01:41]}  Qc7 {[%clk 0:01:06]} 24. Qh4 {[%clk 0:01:40]}  Bxg5 {[%clk 0:00:51]} 25. Qxg5 {[%clk 0:01:41]}  Kb8 {[%clk 0:00:50]} 26. Qh6 {[%clk 0:01:06]}  Rd8 {[%clk 0:00:45]} 27. Rxd8+ {[%clk 0:01:05]}  Qxd8 {[%clk 0:00:46]} 28. Qg7 {[%clk 0:01:06]}  Qe8 {[%clk 0:00:44]} 29. h4 {[%clk 0:01:04]}  Bc8 {[%clk 0:00:44]} 30. Ne2 {[%clk 0:01:02]}  Be6 {[%clk 0:00:39]} 31. Bxe6 {[%clk 0:01:01]}  Qxe6 {[%clk 0:00:40]} 32. Qf8+ {[%clk 0:01:02]}  Kc7 {[%clk 0:00:40]} 33. Qg7 {[%clk 0:00:26]}  Nd7 {[%clk 0:00:37]} 34. h5 {[%clk 0:00:24]}  gxh5 {[%clk 0:00:36]} 35. Qg3+ {[%clk 0:00:21]}  Qd6 {[%clk 0:00:33]} 36. Nf4 {[%clk 0:00:12]}  Nxf6 {[%clk 0:00:29]} 37. e5 {[%clk 0:00:13]}  Qd1+ {[%clk 0:00:24]} 38. Ka2 {[%clk 0:00:13]}  Ne4 {[%clk 0:00:23]} 39. Qh2 {[%clk 0:00:05]}  Nd2 {[%clk 0:00:20]} 40. a4 {[%clk 0:00:02]}  b4 {[%clk 0:00:19]} 41. Nd5+ {[%clk 0:00:01]}  cxd5 {[%clk 0:00:13]} 42. e6+ {[%clk 0:00:02]}  Kd8 {[%clk 0:00:13]} 43. Qd6+ {[%clk 0:00:02]}  Kc8 {[%clk 0:00:12]} 44. Qd7+ {[%clk 0:00:01]}  Kb8 {[%clk 0:00:12]} 45. Qd8+ {[%clk 0:00:01]}  Kb7 {[%clk 0:00:13]} 46. Qxd5+ {[%clk 0:00:01]}  Kb8 {[%clk 0:00:13]} 47. Qd6+ {[%clk 0:00:02]}  Kb7 {[%clk 0:00:13]} 48. Qxb4+ {[%clk 0:00:02]}  Kc7 {[%clk 0:00:13]} 49. Qc5+ {[%clk 0:00:02]}  Kb7 {[%clk 0:00:12]} 50. Qd5+ {[%clk 0:00:03]}  Kc7 {[%clk 0:00:13]} 51. Qe5+ {[%clk 0:00:03]}  Kc6 {[%clk 0:00:13]} 52. exf7 {[%clk 0:00:03]}  Qb1+ {[%clk 0:00:13]} 53. Ka3 {[%clk 0:00:03]}  Nc4+ {[%clk 0:00:13]} 54. Kb3 {[%clk 0:00:04]}  Nxe5 {[%clk 0:00:12]} 55. f8=Q {[%clk 0:00:05]}  Qe1 {[%clk 0:00:10]} 56. Qa8+ {[%clk 0:00:05]}  Kd6 {[%clk 0:00:10]} 57. Qxa6+ {[%clk 0:00:05]}  Nc6 {[%clk 0:00:11]} 58. Qd3+ {[%clk 0:00:05]}  Kc7 {[%clk 0:00:10]} 59. Qh7+ {[%clk 0:00:05]}  Kb6 {[%clk 0:00:09]} 60. Qxh5 {[%clk 0:00:06]}  Qb4+ {[%clk 0:00:09]} 61. Ka2 {[%clk 0:00:06]}  Qxa4+ {[%clk 0:00:10]} 62. Kb1 {[%clk 0:00:07]}  Nb4 {[%clk 0:00:10]} 63. Qh6+ {[%clk 0:00:06]}  Ka5 {[%clk 0:00:10]} 64. Qg5+ {[%clk 0:00:07]}  Kb6 {[%clk 0:00:11]} 65. Qe3+ {[%clk 0:00:07]}  Kb5 {[%clk 0:00:11]} 66. Qe8+ {[%clk 0:00:06]}  Ka5 {[%clk 0:00:11]} 67. Qa8+ {[%clk 0:00:06]}  Kb5 {[%clk 0:00:11]} 68. c4+ {[%clk 0:00:06]}  Kb6 {[%clk 0:00:06]} 69. Qxa4 {[%clk 0:00:07]}  Kc5 {[%clk 0:00:07]} 70. Qb5+ {[%clk 0:00:07]} 1-0


[Site "https://www.chess.com"]

[Event "Titled Tuesday Blitz May 03 Late 2022"]
[White "Brahami, Lamine"]
[Black "Stearman, Josiah"]
[WhiteFideId "7905637"]
[BlackFideId "2062496"]
[WhiteElo "1937"]
[BlackElo "2402"]
[Result "0-1"]
[Round "01"]
[TimeControl "180+1"]
[Date "2022.05.03"]
[WhiteClock "0:01:43"]
[BlackClock "0:01:42"]

1. d4 {[%clk 0:03:00]}  d5 {[%clk 0:02:50]} 2. c4 {[%clk 0:02:59]}  c6 {[%clk 0:02:49]} 3. Nc3 {[%clk 0:02:58]}  Nf6 {[%clk 0:02:47]} 4. cxd5 {[%clk 0:02:55]}  cxd5 {[%clk 0:02:46]} 5. Qc2 {[%clk 0:02:56]}  Nc6 {[%clk 0:02:46]} 6. Nf3 {[%clk 0:02:54]}  Bg4 {[%clk 0:02:46]} 7. Ne5 {[%clk 0:02:52]}  Bh5 {[%clk 0:02:39]} 8. Nxc6 {[%clk 0:02:51]}  bxc6 {[%clk 0:02:38]} 9. Bg5 {[%clk 0:02:47]}  e6 {[%clk 0:02:37]} 10. e3 {[%clk 0:02:35]}  Be7 {[%clk 0:02:35]} 11. Bd3 {[%clk 0:02:34]}  h6 {[%clk 0:02:32]} 12. Bh4 {[%clk 0:02:33]}  O-O {[%clk 0:02:31]} 13. O-O {[%clk 0:02:33]}  Rc8 {[%clk 0:02:28]} 14. Na4 {[%clk 0:02:30]}  Nd7 {[%clk 0:02:16]} 15. Bg3 {[%clk 0:02:18]}  Qa5 {[%clk 0:01:53]} 16. a3 {[%clk 0:02:01]}  c5 {[%clk 0:01:48]} 17. dxc5 {[%clk 0:01:58]}  Nxc5 {[%clk 0:01:46]} 18. Nxc5 {[%clk 0:01:49]}  Rxc5 {[%clk 0:01:42]} 19. Qd1 {[%clk 0:01:43]}  Bxd1 {[%clk 0:01:42]} 0-1


[Site "https://www.chess.com"]

[Event "Titled Tuesday Blitz May 03 Late 2022"]
[White "Fedoseev, Vladimir"]
[Black "Reprintsev, Alexander"]
[WhiteFideId "24130737"]
[BlackFideId "14100541"]
[WhiteElo "2726"]
[BlackElo "2108"]
[Result "1-0"]
[Round "01"]
[TimeControl "180+1"]
[Date "2022.05.03"]
[WhiteClock "0:01:06"]
[BlackClock "0:01:41"]

1. e4 {[%clk 0:02:42]}  d5 {[%clk 0:02:57]} 2. exd5 {[%clk 0:02:41]}  Qxd5 {[%clk 0:02:57]} 3. Nf3 {[%clk 0:02:41]}  Bg4 {[%clk 0:02:56]} 4. Be2 {[%clk 0:02:39]}  Nc6 {[%clk 0:02:56]} 5. Nc3 {[%clk 0:02:38]}  Qd7 {[%clk 0:02:56]} 6. d4 {[%clk 0:02:35]}  e6 {[%clk 0:02:40]} 7. h3 {[%clk 0:02:12]}  Bxf3 {[%clk 0:02:28]} 8. Bxf3 {[%clk 0:02:13]}  O-O-O {[%clk 0:02:28]} 9. Bxc6 {[%clk 0:02:01]}  Qxc6 {[%clk 0:02:28]} 10. O-O {[%clk 0:02:02]}  Bb4 {[%clk 0:02:25]} 11. Ne2 {[%clk 0:01:59]}  e5 {[%clk 0:02:18]} 12. c3 {[%clk 0:01:46]}  Bc5 {[%clk 0:02:15]} 13. Qb3 {[%clk 0:01:37]}  exd4 {[%clk 0:02:13]} 14. cxd4 {[%clk 0:01:38]}  Bxd4 {[%clk 0:02:05]} 15. Nxd4 {[%clk 0:01:37]}  Rxd4 {[%clk 0:02:05]} 16. Qxf7 {[%clk 0:01:37]}  Qf6 {[%clk 0:01:59]} 17. Qe8+ {[%clk 0:01:16]}  Rd8 {[%clk 0:01:57]} 18. Qa4 {[%clk 0:01:15]}  a6 {[%clk 0:01:55]} 19. Qg4+ {[%clk 0:01:13]}  Rd7 {[%clk 0:01:52]} 20. Bg5 {[%clk 0:01:05]}  Nh6 {[%clk 0:01:45]} 21. Qxd7+ {[%clk 0:01:03]}  Kxd7 {[%clk 0:01:44]} 22. Bxf6 {[%clk 0:01:04]}  gxf6 {[%clk 0:01:44]} 23. Rad1+ {[%clk 0:01:05]}  Kc6 {[%clk 0:01:41]} 24. Rfe1 {[%clk 0:01:06]} 1-0


[Site "https://www.chess.com"]

[Event "Titled Tuesday Blitz May 03 Late 2022"]
[White "Fernandez Hernandez, Gerardo"]
[Black "Martinez Reyes, Pedro Ramon"]
[WhiteFideId "2207400"]
[BlackFideId "3901807"]
[WhiteElo "2191"]
[BlackElo "2410"]
[Result "0-1"]
[Round "01"]
[TimeControl "180+1"]
[Date "2022.05.03"]
[WhiteClock "0:01:52"]
[BlackClock "0:02:40"]

1. e4 {[%clk 0:02:59]}  e6 {[%clk 0:02:59]} 2. d3 {[%clk 0:02:58]}  d5 {[%clk 0:02:57]} 3. Nd2 {[%clk 0:02:59]}  Nf6 {[%clk 0:02:56]} 4. Ngf3 {[%clk 0:02:59]}  b6 {[%clk 0:02:57]} 5. c3 {[%clk 0:02:57]}  Bb7 {[%clk 0:02:54]} 6. Qe2 {[%clk 0:02:56]}  dxe4 {[%clk 0:02:53]} 7. dxe4 {[%clk 0:02:56]}  Ba6 {[%clk 0:02:54]} 8. c4 {[%clk 0:02:55]}  Nc6 {[%clk 0:02:52]} 9. e5 {[%clk 0:02:51]}  Nd7 {[%clk 0:02:49]} 10. b3 {[%clk 0:02:39]}  Nc5 {[%clk 0:02:42]} 11. Bb2 {[%clk 0:02:36]}  Nb4 {[%clk 0:02:42]} 12. Bd4 {[%clk 0:01:52]}  Nc2+ {[%clk 0:02:39]} 13. Kd1 {[%clk 0:01:52]}  Nxd4 {[%clk 0:02:40]} 0-1


[Site "https://www.chess.com"]

[Event "Titled Tuesday Blitz May 03 Late 2022"]
[White "Fernandez Siles, Luis"]
[Black "Fishbein, Alexander"]
[WhiteFideId "2209420"]
[BlackFideId "2000377"]
[WhiteElo "2212"]
[BlackElo "2442"]
[Result "0-1"]
[Round "01"]
[TimeControl "180+1"]
[Date "2022.05.03"]
[WhiteClock "0:00:25"]
[BlackClock "0:00:53"]

1. e4 {[%clk 0:02:59]}  c5 {[%clk 0:02:58]} 2. Nf3 {[%clk 0:02:57]}  d6 {[%clk 0:02:56]} 3. d4 {[%clk 0:02:56]}  cxd4 {[%clk 0:02:56]} 4. Nxd4 {[%clk 0:02:57]}  Nf6 {[%clk 0:02:56]} 5. Nc3 {[%clk 0:02:57]}  Nc6 {[%clk 0:02:57]} 6. Bg5 {[%clk 0:02:55]}  e6 {[%clk 0:02:57]} 7. Qd2 {[%clk 0:02:54]}  Be7 {[%clk 0:02:57]} 8. O-O-O {[%clk 0:02:51]}  O-O {[%clk 0:02:57]} 9. f3 {[%clk 0:02:47]}  Nxd4 {[%clk 0:02:56]} 10. Qxd4 {[%clk 0:02:46]}  a6 {[%clk 0:02:56]} 11. Kb1 {[%clk 0:02:28]}  b5 {[%clk 0:02:55]} 12. h4 {[%clk 0:02:20]}  Bb7 {[%clk 0:02:50]} 13. Bd3 {[%clk 0:02:15]}  Nd7 {[%clk 0:02:44]} 14. Qe3 {[%clk 0:01:53]}  f6 {[%clk 0:02:17]} 15. Bf4 {[%clk 0:01:49]}  Ne5 {[%clk 0:02:17]} 16. g4 {[%clk 0:01:29]}  Rc8 {[%clk 0:02:15]} 17. Ne2 {[%clk 0:01:26]}  Qc7 {[%clk 0:02:12]} 18. Nd4 {[%clk 0:01:25]}  Qd7 {[%clk 0:02:03]} 19. h5 {[%clk 0:01:05]}  Nxd3 {[%clk 0:01:56]} 20. Qxd3 {[%clk 0:00:59]}  e5 {[%clk 0:01:53]} 21. Qb3+ {[%clk 0:00:59]}  d5 {[%clk 0:01:50]} 22. exd5 {[%clk 0:00:49]}  Bxd5 {[%clk 0:01:32]} 23. Nf5 {[%clk 0:00:48]}  Bxb3 {[%clk 0:01:31]} 24. Rxd7 {[%clk 0:00:48]}  Bxc2+ {[%clk 0:01:31]} 25. Ka1 {[%clk 0:00:47]}  Bxf5 {[%clk 0:01:29]} 26. gxf5 {[%clk 0:00:48]}  exf4 {[%clk 0:01:21]} 27. Rxe7 {[%clk 0:00:46]}  Rfe8 {[%clk 0:01:21]} 28. Re4 {[%clk 0:00:37]}  Rxe4 {[%clk 0:01:17]} 29. fxe4 {[%clk 0:00:37]}  Rc4 {[%clk 0:01:17]} 30. Re1 {[%clk 0:00:37]}  f3 {[%clk 0:01:16]} 31. b3 {[%clk 0:00:37]}  f2 {[%clk 0:01:15]} 32. Rf1 {[%clk 0:00:37]}  Rxe4 {[%clk 0:01:15]} 33. Rxf2 {[%clk 0:00:37]}  Kf7 {[%clk 0:01:10]} 34. Rc2 {[%clk 0:00:32]}  h6 {[%clk 0:00:59]} 35. Rc7+ {[%clk 0:00:31]}  Kg8 {[%clk 0:00:59]} 36. Ra7 {[%clk 0:00:27]}  Re5 {[%clk 0:00:59]} 37. Rxa6 {[%clk 0:00:27]}  Rxf5 {[%clk 0:00:59]} 38. a4 {[%clk 0:00:25]}  bxa4 {[%clk 0:00:59]} 39. bxa4 {[%clk 0:00:24]}  Rxh5 {[%clk 0:01:00]} 40. a5 {[%clk 0:00:24]}  f5 {[%clk 0:00:56]} 41. Ra8+ {[%clk 0:00:24]}  Kh7 {[%clk 0:00:53]} 42. a6 {[%clk 0:00:25]}  f4 {[%clk 0:00:53]} 0-1


[Site "https://www.chess.com"]

[Event "Titled Tuesday Blitz May 03 Late 2022"]
[White "Ferreira, Vitor Hugo Vieira"]
[Black "Sjugirov, Sanan"]
[WhiteFideId "2119765"]
[BlackFideId "4189302"]
[WhiteElo "2165"]
[BlackElo "2602"]
[Result "1-0"]
[Round "01"]
[TimeControl "180+1"]
[Date "2022.05.03"]
[WhiteClock "0:01:28"]
[BlackClock "0:01:32"]

1. d4 {[%clk 0:03:00]}  Nf6 {[%clk 0:03:00]} 2. c4 {[%clk 0:02:57]}  e6 {[%clk 0:03:00]} 3. Nf3 {[%clk 0:02:57]}  c5 {[%clk 0:03:00]} 4. d5 {[%clk 0:02:54]}  exd5 {[%clk 0:03:01]} 5. cxd5 {[%clk 0:02:54]}  d6 {[%clk 0:03:02]} 6. Nc3 {[%clk 0:02:48]}  g6 {[%clk 0:03:02]} 7. g3 {[%clk 0:02:48]}  Bg7 {[%clk 0:03:02]} 8. Bg2 {[%clk 0:02:49]}  O-O {[%clk 0:03:02]} 9. O-O {[%clk 0:02:50]}  Re8 {[%clk 0:03:03]} 10. Nd2 {[%clk 0:02:50]}  a6 {[%clk 0:03:01]} 11. a4 {[%clk 0:02:49]}  Nbd7 {[%clk 0:03:01]} 12. Nc4 {[%clk 0:02:49]}  Ne5 {[%clk 0:03:00]} 13. Nxe5 {[%clk 0:02:46]}  Rxe5 {[%clk 0:02:59]} 14. Bf4 {[%clk 0:02:43]}  Re8 {[%clk 0:02:53]} 15. h3 {[%clk 0:02:23]}  Rb8 {[%clk 0:02:40]} 16. Rb1 {[%clk 0:02:18]}  b5 {[%clk 0:02:36]} 17. axb5 {[%clk 0:02:17]}  axb5 {[%clk 0:02:37]} 18. b4 {[%clk 0:02:17]}  c4 {[%clk 0:02:36]} 19. e4 {[%clk 0:02:07]}  Nh5 {[%clk 0:02:29]} 20. Bd2 {[%clk 0:02:06]}  Bd7 {[%clk 0:02:23]} 21. Ne2 {[%clk 0:02:05]}  Ra8 {[%clk 0:02:18]} 22. Bc3 {[%clk 0:02:04]}  Bxc3 {[%clk 0:02:15]} 23. Nxc3 {[%clk 0:02:03]}  Qb6 {[%clk 0:02:16]} 24. Kh2 {[%clk 0:01:54]}  Ra3 {[%clk 0:02:12]} 25. Qc1 {[%clk 0:01:52]}  Rea8 {[%clk 0:02:12]} 26. g4 {[%clk 0:01:43]}  Nf6 {[%clk 0:02:08]} 27. Qf4 {[%clk 0:01:40]}  Qd4 {[%clk 0:01:59]} 28. Rbc1 {[%clk 0:01:37]}  Rxc3 {[%clk 0:01:54]} 29. Ra1 {[%clk 0:01:26]}  Rxa1 {[%clk 0:01:45]} 30. Rxa1 {[%clk 0:01:26]}  Rxh3+ {[%clk 0:01:42]} 31. Bxh3 {[%clk 0:01:26]}  Qxa1 {[%clk 0:01:41]} 32. g5 {[%clk 0:01:26]}  Qe5 {[%clk 0:01:31]} 33. Qxe5 {[%clk 0:01:25]}  dxe5 {[%clk 0:01:32]} 34. gxf6 {[%clk 0:01:26]}  Bxh3 {[%clk 0:01:32]} 35. Kxh3 {[%clk 0:01:26]}  c3 {[%clk 0:01:32]} 36. d6 {[%clk 0:01:27]}  Kf8 {[%clk 0:01:32]} 37. d7 {[%clk 0:01:28]} 1-0


[Site "https://www.chess.com"]